[Event "11th Festival Palmanova-A 2022"]
[Site "Strassoldo"]
[Date "2022.12.08"]
[Round "1.1"]
[White "Lumachi, Gabriele"]
[Black "Negro, Roberto"]
[Result "1/2-1/2"]
[ECO "A90"]
[WhiteElo "2394"]
[BlackElo "2117"]
[Annotator "TA"]
[PlyCount "132"]
[EventDate "2022.12.08"]
[EventType "swiss"]
[EventCountry "ITA"]
[SourceTitle "playchess.com"]
[Source "ChessBase"]
[SourceQuality "1"]
[TimeControl "5400+30"]

{[%evp 16,131,34,23,27,12,25,22,16,-12,50,0,68,66,61,72,85,78,73,54,42,0,49,40,30,60,89,105,162,177,238,246,257,266,253,229,262,245,270,281,348,338,313,203,159,127,191,179,187,134,216,206,304,118,171,129,244,235,658,383,335,135,135,135,135,135,136,136,137,137,139,0,173,0,0,0,0,0,0,-184,0,0,0,0,0,0,0,0,0,0,0,-6087,-6087,-6079,-5589,-5326,-5222,-5193,0,0,0,0,0,0,0,0,0,0,0,0,0,0,0,0,0,0,0,0]} 1. Nf3 {[%emt 0:00:05]} e6 {[%emt 0:00:55]} 2. d4 {[%emt 0:00:43]} f5 {[%emt 0:02:40]} 3. g3 {[%emt 0:01:14]} Nf6 {[%emt 0:00:08]} 4. Bg2 {[%emt 0:00:04]} d5 {[%emt 0:00:12]} 5. O-O {[%emt 0:00:13]} Bd6 {[%emt 0:00:07]} 6. c4 {[%emt 0:00:06]} c6 {[%emt 0:00:05]} 7. Bf4 {[%emt 0:00:40]} Bxf4 {[%emt 0:00:21]} 8. gxf4 {[%emt 0:00:07]} O-O {[%emt 0:00:15]} 9. e3 {[%emt 0:00:14]} Ne4 {[%emt 0:00:50] is the legacy move (9...Nbd7). A90: Dutch Defence: Miscellaneous and Modern Stonewall (with ...Bd6).} 10. Ne5 {[%emt 0:01:36]} Nd7 {[%emt 0:00:22]} 11. Nc3 {[%emt 0:04:18][%cal Bb1c3,Bc3e2,Be2f4][%mdl 32]} Nxe5 {[%emt 0:00:22]} 12. fxe5 {[%emt 0:00:14]} Bd7 {[%emt 0:09:16]} (12... Nxc3 $11 13. bxc3 b6) 13. Rc1 {[%emt 0:01:37]} (13. Ne2 $14) 13... Be8 {[%emt 0:02:58]} (13... dxc4 14. Bxe4 fxe4 15. Nxe4 $16) (13... Nxc3 $11 14. Rxc3 Rb8) 14. Ne2 $1 $14 {[%emt 0:05:12]} Qe7 {[%emt 0:07:22]} 15. Qe1 {[%emt 0:02:59] [#]} a5 $146 {[%emt 0:04:04]} ({Predecessor:} 15... Ng5 16. Kh1 Nf7 17. f4 Nh8 18. Bf3 Ng6 19. cxd5 cxd5 20. Nc3 Bc6 21. Rg1 Rfc8 {1-0 (49) Hebden,M (2527)-Gupta,A (2049) London 2014}) 16. f3 {[%emt 0:07:48]} Ng5 {[%emt 0:00:17]} 17. Nf4 {[%emt 0:01:13]} Nf7 {[%emt 0:00:47]} 18. e4 {[%emt 0:07:06][%cal Re4d5]} dxe4 {[%emt 0:16:57]} (18... dxc4 $11 19. Rxc4 g5) 19. fxe4 {[%emt 0:00:11]} fxe4 {[%emt 0:05:47]} 20. Qxe4 {[%emt 0:01:30]} Ng5 {[%emt 0:02:55]} 21. Qe3 $36 {[%emt 0:00:16][%mdl 2048] Keeping Black busy.} Bg6 {[%emt 0:00:59]} (21... Nf7 $16) 22. d5 $1 $18 {[%emt 0:03:41]} Rf5 {[%emt 0:04:13]} (22... Bf5 {might work better.} 23. d6 (23. dxc6 bxc6 24. Bxc6 Rac8 $14) 23... Qd7) 23. d6 {[%emt 0:03:49]} (23. dxc6 bxc6 24. Bxc6 Rc8 $16) 23... Qe8 {[%emt 0:01:37]} 24. Rce1 {[%emt 0:20:11]} Nf7 {[%emt 0:00:30]} 25. Qc3 {[%emt 0:02:19]} Rg5 {[%emt 0:03:08]} 26. Kh1 {[%emt 0:05:01]} Bf5 {[%emt 0:00:16]} 27. Bf3 {[%emt 0:00:06]} Bg4 {[%emt 0:01:24]} 28. Bxg4 {[%emt 0:05:10]} Rxg4 {[%emt 0:00:08]} 29. Qf3 {[%emt 0:00:19] Against a4} Rg5 {[%emt 0:01:32]} 30. Nd3 {[%emt 0:03:35]} b6 {[%emt 0:00:57]} (30... a4 $16 31. Qe3 c5) 31. Qe3 {[%emt 0:02:39]} Rb8 {[%emt 0:01:18]} 32. Rf3 {[%emt 0:04:49]} (32. c5 $18) 32... h6 {[%emt 0:00:42]} (32... c5 $16) 33. Ref1 {[%emt 0:01:30]} Nh8 {[%emt 0:00:31]} (33... Rf5 $142 34. d7 (34. Rxf5 exf5 35. Qf4 Qe6 $16) 34... Qxd7) 34. Rg3 $2 {[%emt 0:01:14]} (34. c5 $18 {has better winning chances.}) 34... Rxg3 {[%emt 0:01:50]} (34... Qh5 $16) 35. Qxg3 {[%emt 0:00:05] Hoping for Nf4.} (35. hxg3 Qg6 $16) 35... c5 {[%emt 0:00:59]} (35... Qg6 $16) 36. Nf4 $1 {[%emt 0:01:53]} g5 $2 {[%emt 0:02:29]} (36... Qf7 37. Kg1 Rf8) 37. Qg4 {[%emt 0:02:24][%cal Of4h5] Threatens to win with Nh5!} Qf7 {[%emt 0:04:47] Against Nh5. ...Ng6 is the strong threat.} 38. Kg2 {[%emt 0:08:10]} (38. h4 $1 $18 {[%cal Rh4g5] is the precise move to win.} Ng6 39. hxg5 Nxe5 40. Qg2 (40. Qxe6 Qxe6 41. Nxe6 Re8 $16)) 38... Rf8 $16 {[%emt 0:00:08] Strongly threatening ...Ng6.} 39. Rf3 {[%emt 0:00:15] Active counter play!} Ng6 {[%emt 0:04:46]} 40. Nxg6 {[%emt 0:00:04]} (40. Nxe6 $2 Nh4+ 41. Kh3 Qxf3+ $19) 40... Qxg6 {[%emt 0:00:04]} 41. Rxf8+ {[%emt 0:00:04]} Kxf8 {[%emt 0:00:09][%mdl 4096] Endgame KQ-KQ} 42. Qf3+ {[%emt 0:00:02]} Qf5 {[%emt 0:00:33]} 43. h4 {[%emt 0:05:05] Prevents h5.} (43. Qxf5+ $1 $16 exf5 44. e6) 43... g4 $2 {[%emt 0:01:25] [#]} (43... gxh4 $11 44. Qxf5+ exf5) 44. Qa8+ $2 {[%emt 0:00:33]} (44. Qxf5+ $1 $18 exf5 45. Kg3) 44... Kf7 $11 {[%emt 0:01:03]} 45. d7 {[%emt 0:00:53]} Qc2+ {[%emt 0:01:10]} 46. Kg3 {[%emt 0:00:45]} Qd3+ {[%emt 0:00:26]} 47. Kxg4 $2 {[%emt 0:00:40]} (47. Kg2 $11 {and White stays safe.} Qxd7 48. Qe4) 47... Qf5+ $2 {[%emt 0:02:28]} (47... h5+ $1 $19 48. Kf4 (48. Kg5 $2 Qf5+ 49. Kh6 Qg6#) 48... Qxc4+ 49. Kg3 Qg4+ 50. Kh2 Qxh4+ 51. Kg2 Qg4+ 52. Kh2 Qf4+ 53. Kh3 Qe3+ 54. Kh4 Qf4+ 55. Kh3 Qg4+ 56. Kh2 Qf4+ 57. Kh3) 48. Kg3 {[%emt 0:00:13]} Qxe5+ {[%emt 0:00:08]} 49. Kf3 $1 {[%emt 0:00:57]} (49. Kh3 Qe3+ 50. Kg4 Qd4+ 51. Kg3 (51. Kh5 Qe5+ 52. Kg4 h5+ 53. Kf3 Qf6+ 54. Kg3 Qg7+ 55. Kf4 Qg4+ 56. Ke3 Qd4+ 57. Kf3 Qxd7 $17) 51... Qd6+ 52. Kg2 Qxd7 $15) 49... Qf5+ {[%emt 0:00:44]} 50. Ke3 {[%emt 0:00:11]} Qe5+ {[%emt 0:00:46]} 51. Kf3 {[%emt 0:00:42]} (51. Qe4 Qxe4+ 52. Kxe4 Ke7 $19) 51... Qf5+ {[%emt 0:00:53]} 52. Ke3 {[%emt 0:00:06]} Qe5+ {[%emt 0:00:25]} 53. Qe4 $2 {[%emt 0:00:14][%mdl 8192]} (53. Kf3 $11 Qf5+) 53... Qxe4+ $19 {[%emt 0:00:47]} 54. Kxe4 {[%emt 0:00:04] KP-KP} Ke7 {[%emt 0:00:02]} 55. Ke5 {[%emt 0:00:29]} Kxd7 {[%emt 0:00:05]} 56. Kf6 {[%emt 0:00:05] [#]} Kd6 $2 {[%emt 0:00:47]} (56... a4 $1 $19 57. Ke5 Ke7) 57. b3 {[%emt 0:02:22] The position is equal.} Kd7 {[%emt 0:02:31]} (57... h5 $5) 58. Kg6 {[%emt 0:00:06]} Ke7 {[%emt 0:00:22]} (58... e5 $5 59. Kf5 $8 Kd6 $11) 59. a3 {[%emt 0:00:59][%cal Ba2a3,Ba3a4][%mdl 32]} (59. Kxh6 $2 {is the wrong capture.} Kf6 60. Kh5 Kf5 $19) (59. h5 $5 e5 $8 60. Kf5 $11) 59... b5 {[%emt 0:09:29]} (59... e5 $5 60. Kf5 $8 Kd6 $11) 60. a4 $1 {[%emt 0:00:04]} (60. cxb5 $2 {loses.} a4 61. bxa4 c4 $19) 60... b4 {[%emt 0:00:41]} 61. Kxh6 {[%emt 0:00:06] Intending Kg6 and mate.} Kf6 $1 {[%emt 0:00:17]} 62. Kh7 {[%emt 0:01:14]} (62. h5 $5) 62... e5 {[%emt 0:03:06][%cal Be6e5,Be5e4,Be4e3,Be3e2][%mdl 32]} 63. h5 {[%emt 0:00:04][%cal Bh4h5,Bh5h6,Bh6h7][%mdl 32]} e4 {[%emt 0:01:06]} 64. h6 {[%emt 0:00:05] White wants to mate with Kg8.} Kf7 {[%emt 0:00:38]} (64... e3 $5 65. Kg8 $8 Kf5 $11) 65. Kh8 {[%emt 0:00:06]} e3 {[%emt 0:00:30] ( -> ...e2)} (65... Kf8 $5) 66. h7 {[%emt 0:00:03]} e2 {[%emt 0:01:11] White used his chance.   Weighted Error Value: White=0.41/Black=0.44} 1/2-1/2

[Event "11th Festival Palmanova-A 2022"]
[Site "Strassoldo"]
[Date "2022.12.08"]
[Round "1.2"]
[White "Colonetti, Fabio"]
[Black "Savanovic, Aleksandar"]
[Result "0-1"]
[ECO "E41"]
[WhiteElo "2118"]
[BlackElo "2365"]
[Annotator "TA"]
[PlyCount "48"]
[EventDate "2022.12.08"]
[EventType "swiss"]
[EventCountry "ITA"]
[SourceTitle "playchess.com"]
[Source "ChessBase"]
[SourceQuality "1"]
[TimeControl "5400+30"]

{[%evp 19,47,0,2,14,2,-25,0,0,0,0,0,-52,-32,-30,-29,-106,-110,-312,-312,-1610,-941,-3089,-2750,-29991,-29992,-29992,-29993,-29996,-29997,-29999]} 1. d4 {[%emt 0:00:04]} Nf6 {[%emt 0:01:14]} 2. c4 {[%emt 0:00:13]} e6 {[%emt 0:00:07]} 3. Nc3 {[%emt 0:00:11]} Bb4 {[%emt 0:00:27]} 4. e3 {[%emt 0:00:10]} c5 {[%emt 0:00:24]} 5. Bd3 {[%emt 0:00:33]} Nc6 {[%emt 0:00:57]} 6. Nf3 {[%emt 0:01:50]} Bxc3+ {[%emt 0:00:45]} 7. bxc3 {[%emt 0:00:16]} d6 {[%emt 0:00:02]} 8. Qc2 {[%emt 0:08:07]} e5 {[%emt 0:06:09]} 9. d5 {[%emt 0:00:28]} Ne7 {[%emt 0:00:07]} 10. O-O {[%emt 0:09:30]} O-O {[%emt 0:19:49]} 11. e4 {[%emt 0:12:37] E41: Nimzo-Indian: Rubinstein: 4...c5 5 Bd3, including Hübner Variation.} Ng6 {[%emt 0:04:01] [#]} 12. g3 $146 {[%emt 0:01:16]} ({Predecessor:} 12. h3 Nh5 13. Kh2 Nhf4 14. Ng1 Nxd3 15. Qxd3 f5 16. exf5 Bxf5 17. Qg3 Qa5 18. f4 Qa4 19. fxe5 Qxc4 {0-1 (26) Garcia Cuenca,V (2384)-Deac,B (2679) Europe Echecs INT 2022}) 12... Bh3 {[%emt 0:10:28]} (12... Nxe4 $5 13. Bxe4 f5 $11) 13. Re1 {[%emt 0:01:10] The position is equal.} h6 {[%emt 0:00:05]} 14. Nd2 {[%emt 0:13:51]} Nh7 {[%emt 0:05:52]} 15. Bf1 {[%emt 0:10:49]} ({Better is} 15. Nf1 $11) 15... Qd7 {[%emt 0:00:29]} (15... Ng5 {is interesting.} 16. Bxh3 Nxh3+ 17. Kg2 Qd7) 16. Bxh3 {[%emt 0:07:26]} Qxh3 {[%emt 0:00:05]} 17. Nf1 {[%emt 0:01:23] [#]} (17. Qd3 $11) 17... f5 $1 $17 {[%emt 0:02:36][%cal Bf7f5,Bf5f4][%mdl 32] Black is more active.} 18. Rb1 $2 {[%emt 0:05:12] This move loses the game for White.} (18. exf5 $17 Rxf5 19. f3) 18... f4 $19 {[%emt 0:05:30] Strongly threatening ...f3.} 19. Rxb7 $2 {[%emt 0:13:02]} (19. f3 Ng5 20. Qg2) 19... Ng5 {[%emt 0:00:21]} 20. Rd1 {[%emt 0:03:05] [#]} Nh4 $1 {[%emt 0:08:40][%mdl 576] ( -> ...Qg2#)} 21. gxh4 {[%emt 0:01:24] [#]} (21. f3 fxg3) 21... f3 $1 {[%emt 0:00:36][%csl Gf3][%cal Rh3g2][%mdl 64] Black mates.} 22. Ne3 {[%emt 0:00:29] [#]} (22. Rxg7+ Kxg7) 22... Rf4 $1 {[%emt 0:00:09]} 23. Qb1 {[%emt 0:03:44] [#]} (23. Rxg7+ Kxg7) 23... Rg4+ $1 {[%emt 0:03:37][%mdl 576] Deflection} 24. Nxg4 {[%emt 0:00:09]} (24. Kh1 Qg2+) 24... Qg2# {[%emt 0:00:06] Weighted Error Value: White=1.21/Black=0.23 (precise)} 0-1

[Event "11th Festival Palmanova-A 2022"]
[Site "Strassoldo"]
[Date "2022.12.08"]
[Round "1.3"]
[White "Lekic, Dusan"]
[Black "Siraj, Svit"]
[Result "1-0"]
[ECO "E14"]
[WhiteElo "2329"]
[BlackElo "2114"]
[Annotator "TA"]
[PlyCount "93"]
[EventDate "2022.12.08"]
[EventType "swiss"]
[EventCountry "ITA"]
[SourceTitle "playchess.com"]
[Source "ChessBase"]
[SourceQuality "1"]
[TimeControl "5400+30"]

{[%evp 14,93,50,54,51,47,54,31,31,33,34,43,57,-20,-14,-18,32,16,111,92,137,135,135,135,136,141,142,130,146,131,144,131,142,142,142,133,189,142,142,89,89,73,74,82,81,0,0,0,0,0,0,0,85,85,85,85,85,85,127,127,127,127,153,153,153,153,271,252,628,627,1277,1203,12830,8927,3100,3142,29975,29976,29989,29990,29990,29991]} 1. d4 {[%emt 0:00:06]} Nf6 {[%emt 0:00:07]} 2. c4 {[%emt 0:00:13]} e6 {[%emt 0:00:06]} 3. Nf3 {[%emt 0:00:25]} Bb4+ {[%emt 0:00:33]} 4. Nbd2 {[%emt 0:00:36]} b6 {[%emt 0:00:52]} 5. a3 {[%emt 0:00:55]} Bxd2+ {[%emt 0:01:54]} 6. Qxd2 {[%emt 0:00:12]} Bb7 {[%emt 0:01:03]} 7. e3 {[%emt 0:00:34]} Ne4 {[%emt 0:00:48]} 8. Qc2 {[%emt 0:00:40]} d5 {[%emt 0:02:14] E14: Queen's Indian: Classical Variation (4 e3).} 9. Bd3 {[%emt 0:06:28]} O-O {[%emt 0:03:51] [#]} 10. b3 $146 {[%emt 0:06:06]} ({Predecessor:} 10. b4 Nd7 11. Bb2 f5 12. O-O Ndf6 13. Ne5 Rc8 14. f3 Ng5 15. c5 c6 16. cxb6 axb6 {0-1 (51) Dylag,E (2003)-Sloan,J (2087) Chess.com INT 2022}) 10... Nd7 {[%emt 0:02:16] White is slightly better.} 11. Bb2 {[%emt 0:01:34]} f5 {[%emt 0:02:15]} 12. b4 {[%emt 0:12:40]} c6 {[%emt 0:03:00]} 13. Ne5 {[%emt 0:06:03]} ({White should play} 13. O-O $14) 13... Nxe5 $11 {[%emt 0:03:02]} 14. dxe5 {[%emt 0:00:19]} Rc8 {[%emt 0:04:04]} (14... c5 $11) 15. O-O $14 {[%emt 0:05:21]} Qe7 {[%emt 0:06:01]} (15... c5 $11 {keeps the balance.}) 16. f3 $16 {[%emt 0:01:40]} Ng5 {[%emt 0:00:14]} 17. c5 {[%emt 0:02:04]} Nf7 {[%emt 0:05:35]} 18. Bd4 {[%emt 0:00:59]} b5 {[%emt 0:00:27]} 19. a4 {[%emt 0:00:24]} a6 {[%emt 0:00:29]} 20. Ra2 {[%emt 0:03:28]} Nh6 {[%emt 0:04:13]} 21. Rfa1 {[%emt 0:04:35]} Ra8 {[%emt 0:01:42]} 22. g3 {[%emt 0:07:43]} Nf7 {[%emt 0:02:41]} 23. Kh1 {[%emt 0:05:48]} Kh8 {[%emt 0:01:51]} 24. h3 {[%emt 0:04:43]} h6 {[%emt 0:01:43]} (24... Rg8 $16 {is a better defense.} 25. f4 g6) 25. h4 {[%emt 0:01:06]} (25. f4 $18) 25... h5 {[%emt 0:00:37]} 26. axb5 {[%emt 0:01:00]} (26. Qf2 $142) 26... axb5 {[%emt 0:00:11]} 27. Rxa8 {[%emt 0:01:28]} Rxa8 {[%emt 0:00:05]} 28. Rxa8+ {[%emt 0:00:16]} Bxa8 {[%emt 0:00:06]} 29. Bxf5 {[%emt 0:03:57]} exf5 $11 {[%emt 0:01:37]} 30. Qxf5 {[%emt 0:00:10]} Bb7 {[%emt 0:01:32]} 31. Qxh5+ {[%emt 0:00:44]} Nh6 {[%emt 0:03:10]} 32. Qg6 {[%emt 0:00:57]} Kg8 {[%emt 0:04:14]} (32... Qf7 $2 33. Qxf7 Nxf7 34. e6 $18) (32... Bc8 $11) 33. Kg2 $16 {[%emt 0:01:40] White has more active pieces.} Qf7 {[%emt 0:03:01] [#] Inhibits e6.} 34. Qxf7+ {[%emt 0:01:59]} Kxf7 {[%emt 0:00:18] [#]} 35. e6+ $1 {[%emt 0:00:25]} Kxe6 {[%emt 0:01:04]} 36. Bxg7 {[%emt 0:00:09]} Nf5 {[%emt 0:00:33][%csl LRe3,LRg7]} 37. Bd4 {[%emt 0:00:12][%mdl 1024] White has strong compensation.} Bc8 {[%emt 0:02:00]} 38. h5 {[%emt 0:01:15]} Kf7 {[%emt 0:01:45]} 39. g4 {[%emt 0:00:34][%cal Bg3g4,Bg4g5,Bg5g6][%mdl 32]} Nh6 {[%emt 0:01:29]} (39... Bd7 $16 {was worth a try.} 40. gxf5 Bxf5) 40. Kg3 $18 {[%emt 0:00:20]} Kg8 $2 {[%emt 0:03:54]} (40... Nf5+ 41. gxf5 Bxf5) 41. Kf4 {[%emt 0:01:11] Hoping for g5.} Nf7 {[%emt 0:01:37]} 42. g5 {[%emt 0:00:30] And now g6 would win.} Bd7 {[%emt 0:00:50]} 43. g6 {[%emt 0:00:31]} Nh6 {[%emt 0:06:45]} 44. Kg5 {[%emt 0:00:24]} Nf5 {[%emt 0:00:48]} 45. h6 {[%emt 0:00:16] White mates.} Nxd4 {[%emt 0:00:45]} 46. exd4 {[%emt 0:00:10]} Be8 {[%emt 0:01:13]} 47. f4 {[%emt 0:00:23] Weighted Error Value: White=0.12 (very precise) /Black=0.45} 1-0

[Event "11th Festival Palmanova-A 2022"]
[Site "Strassoldo"]
[Date "2022.12.08"]
[Round "1.4"]
[White "Pozzari, Simone"]
[Black "Gschiel, Alexander"]
[Result "0-1"]
[ECO "D02"]
[WhiteElo "2139"]
[BlackElo "2322"]
[Annotator "TA"]
[PlyCount "82"]
[EventDate "2022.12.08"]
[EventType "swiss"]
[EventCountry "ITA"]
[SourceTitle "playchess.com"]
[Source "ChessBase"]
[SourceQuality "1"]
[TimeControl "5400+30"]

{[%evp 13,82,-8,0,-6,5,5,5,11,69,74,74,71,71,76,91,100,96,89,98,71,90,75,116,100,98,110,94,48,67,62,132,125,118,-84,98,110,109,0,0,0,0,0,0,0,0,0,0,-285,-293,-275,0,0,0,-707,-707,-683,-679,-656,-631,-29986,-29987,-29988,-29989,-29989,-29988,-29988,187,193,187,-1351,-1271]} 1. d4 {[%emt 0:00:04]} d5 {[%emt 0:00:09]} 2. Bf4 {[%emt 0:00:08]} Nf6 {[%emt 0:00:13]} 3. e3 {[%emt 0:00:06]} e6 {[%emt 0:00:13]} 4. Nd2 {[%emt 0:00:07]} Bd6 {[%emt 0:00:18]} 5. Bg3 {[%emt 0:00:06]} O-O {[%emt 0:01:00]} 6. Ngf3 {[%emt 0:00:06]} c5 {[%emt 0:00:59]} 7. c3 {[%emt 0:00:04]} Nc6 {[%emt 0:01:06]} 8. Bb5 {[%emt 0:00:08] D02: 1 d4 d5 2 Nf3 sidelines, including 2...Nf6 3 g3 and 2...Nf6 3 Bf4.} a6 {[%emt 0:03:34]} 9. Bxc6 {[%emt 0:00:07]} bxc6 {[%emt 0:00:08]} 10. Qa4 {[%emt 0:00:04] The position is equal.} Qc7 {[%emt 0:05:06]} (10... cxd4 $11 11. cxd4 (11. Qxc6 $2 Bxg3 12. fxg3 dxe3 $19) 11... Be7) 11. Bxd6 $1 $14 {[%emt 0:00:39]} Qxd6 {[%emt 0:00:08]} 12. Qa3 {[%emt 0:00:04]} Nd7 {[%emt 0:04:57]} 13. O-O {[%emt 0:00:58]} Rb8 {[%emt 0:02:11]} 14. Nb3 {[%emt 0:00:39] [#]} Re8 $146 {[%emt 0:05:25]} ({Predecessor:} 14... e5 15. dxe5 Nxe5 16. Nxe5 Qxe5 17. Qxc5 Re8 18. Rad1 Re6 19. Qd4 Qh5 20. Qf4 Ra8 {1-0 (30) Reyes,N (2003)-Baches Garcia,G (2322) Chess.com INT 2018}) 15. dxc5 {[%emt 0:01:30]} Qc7 {[%emt 0:01:46]} 16. Na5 {[%emt 0:09:19]} e5 {[%emt 0:08:32] Inhibits Nd4.} 17. c4 {[%emt 0:06:29]} e4 {[%emt 0:03:23]} 18. Nd4 {[%emt 0:00:43]} Ne5 {[%emt 0:00:07]} 19. cxd5 {[%emt 0:08:35]} cxd5 {[%emt 0:00:02]} 20. b4 {[%emt 0:02:21]} (20. Qa4 $16 {[%cal Ra4e8]} Be6 21. Nab3) 20... Ng4 {[%emt 0:15:00][%csl Gg4][%cal Rc7h2] [#]} 21. g3 {[%emt 0:00:34] Strongly threatening Nac6.} Qe5 {[%emt 0:00:51]} ({Better is} 21... Ne5 $14) 22. h3 {[%emt 0:03:26]} Qh5 {[%emt 0:04:24]} 23. Qa4 $2 {[%emt 0:28:37]} (23. hxg4 $16 {keeps the pressure on.} Bxg4 24. f4 (24. Nac6 $2 Qh3 $19) 24... exf3 25. Qb2) 23... Be6 $2 {[%emt 0:01:59]} 24. hxg4 $16 {[%emt 0:11:45]} Bxg4 {[%emt 0:00:02]} 25. Nac6 {[%emt 0:00:24]} ({White should try} 25. f4 $16 {aiming for Qc2.} exf3 26. Qc2) 25... Qh3 $1 $11 {[%emt 0:14:33][%cal Og4f3]} 26. Nxb8 {[%emt 0:15:15]} Rxb8 {[%emt 0:00:55]} 27. f3 $1 {[%emt 0:02:00] Threatens to win with Qc2.} (27. Qxa6 {is a self mate.} Bf3) 27... Qxg3+ {[%emt 0:03:14]} 28. Kh1 {[%emt 0:00:02] Black must now prevent Qc2.} Qh3+ $40 {[%emt 0:02:16][%mdl 128] Black attacks.} 29. Kg1 {[%emt 0:00:02]} Bxf3 {[%emt 0:02:12]} 30. Rxf3 {[%emt 0:02:08][%mdl 8192]} exf3 $19 {[%emt 0:00:07][%csl Gf3][%cal Rh3g2] Really sharp!} 31. Qc2 {[%emt 0:00:20] [#] Against Qg2+} Qg3+ {[%emt 0:00:42]} ({Black should play} 31... Re8 $1 $19 {[%cal Re8e4] ( -> ...Re4)} 32. Nxf3 Qxf3) 32. Kf1 $1 $11 {[%emt 0:01:15] Hoping for Qf2.} Re8 {[%emt 0:03:22]} 33. c6 $2 {[%emt 0:01:55][%mdl 8192]} (33. Qf2 $11 Qh3+ 34. Ke1 Qh1+ 35. Qf1) 33... Qh3+ $19 {[%emt 0:00:31]} 34. Ke1 {[%emt 0:04:30]} Qh1+ {[%emt 0:00:55][%mdl 64] Skewer} 35. Kd2 {[%emt 0:00:08]} Qxa1 {[%emt 0:00:07][%mdl 4096] Endgame KQR-KQN} 36. c7 {[%emt 0:00:12]} f2 {[%emt 0:00:05]} 37. Qc6 {[%emt 0:01:31]} f1=N+ {[%emt 0:04:37]} 38. Kc2 {[%emt 0:01:08]} Qxa2+ {[%emt 0:01:19]} 39. Kc1 {[%emt 0:01:06]} Qc4+ $4 {[%emt 0:00:15][%mdl 8192]} ({Resist} 39... Rxe3 40. c8=Q+) (39... Qa1+ {mates} 40. Kc2 Nxe3+ 41. Kb3 Qb1+ 42. Kc3 Nd1+ 43. Kd2 Qxb4+ 44. Kd3 Re3+ 45. Kc2 Qb2+ 46. Kxd1 Qxd4+ 47. Kc1 Re1+ 48. Kc2 Re2+ 49. Kb3 Rb2+ 50. Ka3 Qb4#) 40. Qxc4 $18 {[%emt 0:00:47]} dxc4 {[%emt 0:00:01]} 41. Nf5 {[%emt 0:00:14][%mdl 8192]} (41. Nc6 $18) 41... h5 {[%emt 0:01:46] Black used his chance.   Weighted Error Value: White=0.71/Black=0.38} 0-1